bitfinex/quotes_SOLUSD_20260311
["timestamp","ask_amount","ask_price","bid_price","bid_amount"]
[1773253618698,1.35115915,87.821,87.743,45.58719371]
[1773253618699,1.35115915,87.819,87.78,2.91089266]
[1773253618898,1.35115915,87.817,87.78,2.91089266]
[1773253619406,1.35115915,87.815,87.78,2.91089266]
[1773253619901,1.35115915,87.815,87.781,11.39198687]
[1773253620333,28.46573355,87.825,87.791,0.22663219]
[1773253620609,12.73704975,87.828,87.801,0.22663219]
[1773253620981,1.35115915,87.827,87.801,0.22663219]
[1773253621405,11.38614988,87.826,87.802,11.3892622]
[1773253621608,11.38614988,87.826,87.8,2.91089266]
[1773253621609,1.35115915,87.825,87.8,2.91089266]
[1773253621810,1.35115915,87.825,87.79,2.91089266]
[1773253622114,1.35115915,87.825,87.8,2.91089266]
[1773253622307,1.35115915,87.825,87.81,2.91089266]
[1773253622510,1.35115915,87.843,87.82,0.2260414]
[1773253622826,12.73515073,87.843,87.82,2.91089266]
[1773253623118,11.38399158,87.843,87.82,2.91089266]
[1773253623291,1.46417985,87.842,87.81,2.91089266]
[1773253623617,1.46417985,87.84,87.81,2.904673]
[1773253623816,1.46417985,87.84,87.82,2.904673]
[1773253623997,1.46417985,87.845,87.82,2.904673]
[1773253625025,11.38358478,87.846,87.81,39.85870765]
[1773253625026,11.38358478,87.846,87.83,2.904673]
[1773253625415,11.38306776,87.85,87.83,2.904673]
[1773253627328,1.46417985,87.85,87.821,11.38675704]
[1773253629306,11.38316884,87.849,87.82,2.904673]
[1773253629515,11.38316884,87.849,87.81,28.47056143]
[1773253629516,2.88709215,87.848,87.81,2.904673]
[1773253629717,1.46417985,87.847,87.81,2.904673]
[1773253630806,1.46417985,87.847,87.811,11.38809488]
[1773253631012,1.46417985,87.847,87.82,2.904673]
[1773253631637,11.38355758,87.846,87.82,2.904673]
[1773253633009,11.38355758,87.846,87.83,2.904673]
[1773253633322,11.38286281,87.852,87.83,2.904673]
[1773253633523,11.38303927,87.85,87.83,2.904673]
[1773253633832,1.46417985,87.857,87.831,11.3855017]
[1773253634025,1.46417985,87.857,87.83,2.904673]
[1773253635376,0.1,87.86,87.84,2.904673]
[1773253635837,0.1,87.86,87.812,1.28095808]
[1773253635838,12.84618262,87.858,87.83,2.904673]
[1773253636210,1.46417985,87.857,87.83,2.904673]
[1773253636716,1.46417985,87.849,87.805,11.38887307]
[1773253636924,1.46417985,87.847,87.805,11.38887307]
[1773253637328,1.46417985,87.847,87.81,2.904673]
[1773253637722,1.46417985,87.845,87.81,2.904673]
[1773253638329,1.46417985,87.845,87.8,2.904673]
[1773253639722,1.46417985,87.843,87.81,2.904673]
[1773253640524,1.46417985,87.843,87.82,2.904673]
[1773253640731,11.38381676,87.844,87.82,2.904673]
[1773253640934,11.38327383,87.849,87.83,2.904673]
[1773253641120,1.46417985,87.852,87.83,2.904673]
[1773253641322,1.46417985,87.852,87.82,2.904673]
[1773253641743,12.84708954,87.851,87.821,11.38679814]
[1773253641922,1.46417985,87.85,87.821,11.38679814]
[1773253642642,1.46417985,87.85,87.81,2.904673]
[1773253642825,1.46417985,87.85,87.82,2.904673]
[1773253644042,1.46417985,87.848,87.82,2.904673]
[1773253644625,1.46417985,87.848,87.792,0.14216157]
[1773253644626,1.46417985,87.847,87.8,2.904673]
[1773253644840,1.46417985,87.847,87.8,14.29412967]
[1773253645143,1.46417985,87.839,87.8,14.29412967]
[1773253646128,1.46417985,87.837,87.8,14.29412967]
[1773253647522,1.46417985,87.835,87.8,14.29412967]
[1773253649249,1.46417985,87.833,87.8,14.29412967]
[1773253651451,1.46417985,87.831,87.8,14.29412967]
[1773253652649,1.46417985,87.831,87.8,2.904673]
[1773253652858,1.46417985,87.829,87.79,2.904673]
[1773253653150,1.46417985,87.829,87.791,11.39068925]
[1773253653448,1.46417985,87.827,87.791,11.39068925]
[1773253654443,11.3858906,87.828,87.8,2.904673]
[1773253655045,1.46417985,87.827,87.8,2.904673]
[1773253655234,1.46417985,87.847,87.81,2.904673]
[1773253655434,1.46417985,87.845,87.811,11.38809488]
[1773253655635,11.38355758,87.846,87.811,11.38809488]
[1773253655942,1.46417985,87.849,87.812,1.13879651]
[1773253657846,1.46417985,87.847,87.813,11.38783551]
[1773253658052,1.46417985,87.847,87.814,1.13877058]
[1773253659738,1.46417985,87.857,87.802,0.14216157]
[1773253659947,1.46417985,87.819,87.771,28.48309931]
[1773253660336,1.46417985,87.817,87.76,2.904673]
[1773253660542,1.46417985,87.809,87.76,2.904673]
[1773253661058,1.46417985,87.799,87.75,2.904673]
[1773253661258,1.46417985,87.797,87.751,39.88558534]
[1773253662343,1.46417985,87.795,87.764,11.39419351]
[1773253662854,1.46417985,87.795,87.758,11.39485338]
[1773253663053,1.46417985,87.789,87.756,11.39512936]
[1773253663260,1.46417985,87.789,87.76,11.39471023]
[1773253664052,1.46417985,87.789,87.75,2.904673]
[1773253664256,1.46417985,87.789,87.763,22.74444924]
[1773253664650,1.46417985,87.787,87.763,11.35021693]
[1773253665556,11.39133802,87.786,87.763,11.35021693]
[1773253666145,1.46417985,87.787,87.763,22.74449821]
[1773253666346,1.46417985,87.787,87.732,0.14216157]
[1773253666347,1.36417985,87.769,87.7,0.2]
[1773253666542,3.69383402,87.783,87.67,3.104673]
[1773253666543,1.36417985,87.719,87.67,3.104673]
[1773253666758,3.69383402,87.747,87.67,3.104673]
[1773253666759,2.904673,87.7,87.671,0.18954758]
[1773253667070,3.69383402,87.747,87.671,0.18954758]
[1773253667071,1.36417985,87.702,87.671,0.18954758]
[1773253667359,0.14216157,87.733,87.662,7.74906104]
[1773253667360,1.36417985,87.689,87.662,7.74906104]
[1773253667546,11.40406897,87.688,87.651,11.40888295]
[1773253667748,11.40406897,87.688,87.65,0.2]
[1773253667749,1.36417985,87.687,87.65,0.2]
[1773253667948,1.36417985,87.699,87.661,0.1893815]
[1773253669750,11.40276859,87.698,87.662,11.40745134]
[1773253669956,1.36686536,87.697,87.662,11.40745134]
[1773253670355,1.36686536,87.697,87.663,0.18889464]
[1773253670552,1.36686536,87.697,87.662,11.40745134]
[1773253670553,31.98729212,87.715,87.68,7.2889621]
[1773253670751,43.38790244,87.715,87.69,7.2889621]
[1773253671190,43.38790244,87.715,87.64,0.2]
[1773253671191,7.2889621,87.7,87.64,0.2]
[1773253671351,7.2889621,87.66,87.612,1.33953716]
[1773253671662,7.2889621,87.65,87.612,1.33953716]
[1773253671861,7.2889621,87.67,87.621,1.33953716]
[1773253672161,7.2889621,87.65,87.621,1.33953716]
[1773253672674,1.36686536,87.659,87.621,1.33953716]
[1773253674054,1.36686536,87.657,87.621,1.33953716]
[1773253674682,1.36686536,87.657,87.622,11.41265892]
[1773253675673,1.36686536,87.657,87.622,11.33595055]
[1773253676069,1.36686536,87.657,87.623,1.33953716]
[1773253676258,1.36686536,87.665,87.625,1.33953716]
[1773253678363,1.36686536,87.663,87.63,7.2889621]
[1773253678563,11.40653191,87.67,87.64,7.2889621]
[1773253678759,1.36686536,87.671,87.641,1.33953716]
[1773253679456,1.36686536,87.689,87.66,7.2889621]
[1773253679760,1.36686536,87.697,87.661,1.33953716]
[1773253680396,1.36686536,87.695,87.663,1.33953716]
[1773253681354,1.36686536,87.679,87.643,11.40988994]
[1773253681967,1.36686536,87.679,87.644,1.33953716]
[1773253682781,1.36686536,87.677,87.645,11.40966398]
[1773253683454,1.36686536,87.677,87.65,7.2889621]
[1773253683655,1.36686536,87.677,87.646,1.33953716]
[1773253683855,7.28828045,87.69,87.645,11.40966398]
[1773253683856,11.40418504,87.688,87.661,1.33953716]
[1773253684471,11.40263857,87.699,87.661,1.33953716]
[1773253684682,11.40263857,87.699,87.642,0.14216157]
[1773253684683,11.40289861,87.697,87.673,1.33953716]
[1773253685182,11.40289861,87.697,87.661,11.40757892]
[1773253685368,39.91014515,87.697,87.662,1.33953716]
[1773253685975,1.36686536,87.696,87.662,1.33953716]
[1773253686960,28.4792084,87.698,87.681,1.33953716]
[1773253687265,28.4792084,87.698,87.673,1.33953716]
[1773253687462,25.39737346,87.698,87.681,1.33953716]
[1773253689359,23.06202618,87.698,87.69,7.28828045]
[1773253689572,22.07818934,87.698,87.69,7.28828045]
[1773253689777,22.78391544,87.716,87.69,7.28828045]
[1773253689973,22.78391544,87.716,87.682,39.91697269]
[1773253689974,1.45690654,87.73,87.71,7.28828045]
[1773253690165,1.45690654,87.738,87.71,7.28828045]
[1773253690979,1.45690654,87.759,87.72,7.28828045]
[1773253691180,1.45690654,87.759,87.73,7.28828045]
[1773253691375,1.45690654,87.758,87.72,7.28828045]
[1773253691781,1.45690654,87.758,87.73,7.28828045]
[1773253692678,1.45690654,87.758,87.689,153.95317542]
[1773253692679,1.45690654,87.758,87.74,7.28828045]
[1773253692891,1.45690654,87.757,87.73,7.28828045]
[1773253693465,1.45690654,87.757,87.731,11.39847944]
[1773253693996,1.45690654,87.755,87.72,7.28828045]
[1773253694162,11.39471285,87.76,87.73,7.28828045]
[1773253694369,1.45690654,87.759,87.73,7.28828045]
[1773253695092,7.14126585,87.761,87.74,7.28828045]
[1773253695682,7.14126585,87.761,87.741,11.39718033]
[1773253695866,7.14126585,87.761,87.75,7.28828045]
[1773253696071,7.28828045,87.79,87.75,7.28828045]
[1773253696072,1.45690654,87.779,87.75,7.28828045]
[1773253696272,1.45690654,87.779,87.76,7.28828045]
[1773253696472,1.45690654,87.779,87.75,7.28828045]
[1773253697900,1.45690654,87.779,87.751,11.39588152]
[1773253698406,1.45690654,87.791,87.77,7.28828045]
[1773253698574,1.45690654,87.791,87.751,39.88558534]
[1773253698575,1.45690654,87.791,87.78,7.28828045]
[1773253698779,1.45690654,87.799,87.76,7.28828045]
[1773253700171,1.45690654,87.797,87.76,18.68288493]
[1773253700379,1.45690654,87.797,87.76,11.39460448]
[1773253700579,1.45690654,87.779,87.74,7.28828045]
[1773253700778,1.45690654,87.769,87.731,0.14216157]
[1773253700974,7.28828045,87.78,87.731,0.14216157]
[1773253700975,1.45690654,87.789,87.75,7.28828045]
[1773253701281,1.45690654,87.779,87.74,7.28828045]
[1773253701476,1.45690654,87.779,87.75,7.28828045]
[1773253701671,1.45690654,87.779,87.74,7.28828045]
[1773253702087,1.45690654,87.777,87.741,11.39718033]
[1773253704396,11.3926358,87.776,87.741,11.39718033]
[1773253704588,1.45690654,87.775,87.75,7.28828045]
[1773253705300,45.55490828,87.807,87.75,7.28828045]
[1773253705301,1.45690654,87.783,87.75,7.28828045]
[1773253705502,1.45690654,87.783,87.76,7.28828045]
[1773253705679,11.3910785,87.788,87.728,11.39886923]
[1773253705680,1.45690654,87.779,87.728,11.39886923]
[1773253705882,1.45690654,87.779,87.74,7.28828045]
[1773253706591,1.45690654,87.777,87.741,11.39718033]
[1773253707389,1.45690654,87.777,87.75,7.28828045]
[1773253708907,1.45690654,87.775,87.74,7.28828045]
[1773253710202,1.45690654,87.769,87.711,11.40107854]
[1773253710507,1.45690654,87.749,87.711,11.40107854]
[1773253710895,1.45690654,87.747,87.711,11.40107854]
[1773253711807,1.45690654,87.747,87.72,7.28828045]
[1773253712386,1.45690654,87.747,87.701,0.14216157]
[1773253712595,1.45690654,87.747,87.701,11.5445401]
[1773253712800,1.45690654,87.747,87.71,7.28828045]
[1773253714014,1.45690654,87.745,87.711,11.40107854]
[1773253714490,11.39653089,87.746,87.72,7.28828045]
[1773253715092,1.45690654,87.748,87.73,7.28828045]
[1773253715291,28.48785389,87.757,87.73,7.28828045]
[1773253715899,11.39523223,87.756,87.73,7.28828045]
[1773253716996,1.45690654,87.755,87.724,0.02044034]
[1773253717210,1.45690654,87.755,87.73,7.28828045]
[1773253719302,1.42419305,87.769,87.72,18.68815799]
[1773253719303,1.45690654,87.753,87.72,18.68815799]
[1773253721322,1.45690654,87.751,87.72,18.68815799]
[1773253721821,1.45690654,87.751,87.72,11.39987754]
[1773253722622,1.45690654,87.751,87.701,0.14216157]
[1773253722623,1.45690654,87.739,87.69,7.28828045]
[1773253722810,1.45690654,87.729,87.69,7.28828045]
[1773253723013,1.45690654,87.729,87.68,7.28828045]
[1773253723210,1.45690654,87.729,87.687,11.40419902]
[1773253723609,1.45690654,87.727,87.687,11.40419902]
[1773253723811,1.45690654,87.727,87.69,7.28828045]
[1773253724011,1.45690654,87.727,87.687,11.40419902]
[1773253724012,1.45690654,87.727,87.7,7.28828045]
[1773253724214,1.45690654,87.727,87.69,7.28828045]
[1773253724522,1.45690654,87.727,87.687,11.40419902]
[1773253724715,1.45690654,87.727,87.683,11.40467656]
[1773253725516,1.45690654,87.719,87.683,11.40467656]
[1773253725816,1.45690654,87.769,87.711,0.02672312]
[1773253726026,1.45690654,87.769,87.74,7.28828045]
[1773253726412,1.45690654,87.769,87.73,7.28828045]
[1773253726812,1.45690654,87.769,87.74,7.28828045]
[1773253727811,11.39367423,87.768,87.741,11.39718033]
[1773253729031,11.39367423,87.768,87.712,0.14216157]
[1773253729032,1.45690654,87.749,87.66,0.02816237]
[1773253729206,233.57032173,87.768,87.641,11.41018473]
[1773253729207,1.45690654,87.689,87.641,11.41018473]
[1773253729409,3.69383402,87.706,87.641,11.41018473]
[1773253729410,1.45690654,87.679,87.641,11.41018473]
[1773253730426,1.45690654,87.677,87.632,28.5281506]
[1773253730728,11.40536964,87.678,87.63,7.28828045]
[1773253730729,1.45690654,87.669,87.63,7.28828045]
[1773253730921,1.45690654,87.669,87.625,11.41221549]
[1773253731527,1.45690654,87.659,87.621,15.36325043]
[1773253731913,1.45690654,87.649,87.621,15.36325043]
[1773253732120,1.45690654,87.639,87.61,0.2]
[1773253732307,1.45690654,87.637,87.611,11.41409183]
[1773253733337,45.62147859,87.678,87.611,11.41409183]
[1773253733338,1.45690654,87.658,87.63,7.28828045]
[1773253733717,1.45690654,87.658,87.62,7.28828045]
[1773253734113,1.45690654,87.658,87.63,7.28828045]
[1773253734721,1.45690654,87.658,87.631,11.4114868]
[1773253735130,1.45690654,87.657,87.617,11.4133102]
[1773253735320,1.45690654,87.657,87.621,0.14216157]
[1773253736125,1.45690654,87.657,87.617,11.4133102]
[1773253736323,1.45690654,87.649,87.612,11.41388847]
[1773253736831,1.45690654,87.647,87.61,0.2]
[1773253737236,1.45690654,87.647,87.611,11.41409183]
[1773253738923,1.45690654,87.645,87.611,11.41409183]
[1773253740138,1.45690654,87.643,87.611,11.41409183]
[1773253740638,1.45690654,87.643,87.578,1.3366915]
[1773253740842,1.43337543,87.579,87.53,7.48828045]
[1773253741022,1.43337543,87.579,87.539,11.4234444]
[1773253741229,1.43337543,87.569,87.53,7.48828045]
[1773253741457,1.43337543,87.569,87.53,0.2]
[1773253742139,1.43337543,87.559,87.53,0.2]
[1773253742318,1.43337543,87.557,87.53,0.2]
[1773253742514,7.28828045,87.55,87.53,0.2]
[1773253742728,1.43337543,87.549,87.53,0.2]
[1773253744336,11.41943587,87.57,87.532,1.44968524]
[1773253744542,11.72634412,87.569,87.53,0.2]
[1773253744836,11.72634412,87.569,87.531,1.44968524]
[1773253745028,11.72634412,87.569,87.53,20.3848162]
[1773253746050,11.72634412,87.569,87.531,1.44968524]
[1773253746342,11.41969669,87.568,87.532,11.42439336]
[1773253746645,11.72634412,87.567,87.533,1.44968524]
[1773253746850,1.43337543,87.566,87.53,0.2]
[1773253747023,1.43337543,87.566,87.514,1.44968524]
[1773253747024,1.43337543,87.549,87.514,1.44968524]
[1773253747223,1.43337543,87.549,87.5,7.31056474]
[1773253747224,1.43337543,87.539,87.505,1.44968524]
[1773253747454,1.43337543,87.539,87.495,1.44968524]
[1773253747739,1.43337543,87.539,87.511,11.42713487]
[1773253747970,1.43337543,87.559,87.52,7.31056474]
[1773253748124,1.43337543,87.557,87.519,1.44968524]
[1773253748325,12.85463725,87.556,87.522,11.42569868]
[1773253748632,12.85463725,87.556,87.53,7.31056474]
[1773253748834,12.85463725,87.556,87.523,1.44968524]
[1773253750047,1.43337543,87.555,87.523,1.44968524]
[1773253750950,1.43337543,87.553,87.523,12.87524844]
[1773253751544,11.72634412,87.558,87.53,8.76024998]
[1773253751736,1.43337543,87.556,87.511,1.44968524]
[1773253751942,11.42113137,87.557,87.52,7.31056474]
[1773253751943,1.43337543,87.551,87.52,7.31056474]
[1773253752253,1.43337543,87.551,87.521,1.44968524]
[1773253752754,1.43337543,87.551,87.522,11.42569868]
[1773253753345,1.43337543,87.551,87.523,1.44968524]
[1773253753754,11.42204454,87.55,87.523,1.44968524]
[1773253754054,1.43337543,87.549,87.51,1.64968524]
[1773253754351,1.43337543,87.549,87.512,1.44968524]
[1773253754548,11.42159356,87.554,87.521,1.44968524]
[1773253754951,1.43337543,87.553,87.522,11.42569868]
[1773253755475,1.43337543,87.553,87.523,1.44968524]
[1773253756942,1.43337543,87.551,87.523,1.44968524]
[1773253757148,1.43337543,87.549,87.516,11.4263724]
[1773253758545,1.43337543,87.549,87.517,1.44968524]
[1773253759331,11.42230547,87.548,87.521,1.44968524]
[1773253760752,11.42142739,87.555,87.521,1.44968524]
[1773253761257,11.42142739,87.555,87.531,1.38490181]
[1773253761438,11.42113137,87.557,87.533,1.38490181]
[1773253763258,1.46353338,87.539,87.51,0.2]
[1773253763547,1.46353338,87.537,87.511,11.42713487]
[1773253764139,1.46353338,87.549,87.52,7.31056474]
[1773253764456,1.46353338,87.557,87.52,7.31056474]
[1773253765147,1.46353338,87.557,87.52,8.61822343]
[1773253765346,11.72634412,87.567,87.54,7.31056474]
[1773253765347,1.46353338,87.565,87.54,7.31056474]
[1773253765655,1.46353338,87.565,87.541,11.42321883]
[1773253766154,11.72634412,87.567,87.541,11.42321883]
[1773253766155,11.72634412,87.567,87.541,39.98126591]
[1773253767744,11.72634412,87.567,87.542,1.30931266]
[1773253768653,11.72634412,87.567,87.55,7.31056474]
[1773253768853,8.56668551,87.567,87.56,7.31056474]
[1773253769059,1.48226974,87.596,87.561,0.14216157]
[1773253769250,1.48226974,87.596,87.541,39.98126591]
[1773253769251,1.48226974,87.596,87.57,7.31056474]
[1773253769636,1.48226974,87.596,87.571,11.41930547]
[1773253770657,1.48226974,87.605,87.571,11.41930547]
[1773253770861,1.48226974,87.605,87.58,7.31056474]
[1773253771359,1.48226974,87.605,87.571,11.41930547]
[1773253772649,12.89727362,87.604,87.58,7.31056474]
[1773253773144,1.48226974,87.603,87.58,7.31056474]
[1773253775665,1.48226974,87.612,87.59,7.31056474]
[1773253777951,18.53160525,87.617,87.58,39.9633602]
[1773253777952,1.48226974,87.61,87.581,0.14216157]
[1773253778160,1.48226974,87.61,87.59,7.31056474]
[1773253779366,1.48226974,87.61,87.591,11.41669806]
[1773253779755,7.11824192,87.617,87.6,7.31056474]
[1773253780557,1.48226974,87.635,87.61,7.31056474]
[1773253780957,1.48226974,87.635,87.6,7.31056474]
[1773253781150,1.48226974,87.644,87.61,7.31056474]
[1773253781351,1.48226974,87.644,87.621,11.41278917]
[1773253781552,1.48226974,87.642,87.61,7.31056474]
[1773253783754,1.48226974,87.64,87.611,11.41409183]
[1773253784070,1.48226974,87.64,87.611,39.94932142]
[1773253784861,1.48226974,87.64,87.611,11.41409183]
[1773253785757,1.48226974,87.64,87.62,7.31056474]
[1773253786171,1.48226974,87.64,87.611,0.14216157]
[1773253786660,1.48226974,87.639,87.6,7.31056474]
[1773253786873,1.48226974,87.639,87.601,0.14216157]
[1773253787779,1.48226974,87.637,87.601,40.09604337]
[1773253788674,1.48226974,87.637,87.61,2.91809862]
[1773253788873,1.48226974,87.637,87.62,2.91809862]
[1773253789073,1.48226974,87.653,87.63,2.91809862]
[1773253789596,1.48226974,87.653,87.61,2.91809862]
[1773253789871,1.48226974,87.651,87.621,11.41278917]
[1773253790067,1.48226974,87.651,87.621,39.94476209]
[1773253790373,1.48226974,87.651,87.621,11.41278917]
[1773253790755,0.1,87.66,87.63,2.91809862]
[1773253791076,1.48226974,87.659,87.63,2.91809862]
[1773253791272,1.48226974,87.659,87.64,2.91809862]
[1773253791664,1.48226974,87.659,87.63,2.91809862]
[1773253791866,1.48226974,87.659,87.631,11.4114868]
[1773253792574,1.48226974,87.657,87.627,11.41200599]
[1773253794669,1.48226974,87.657,87.63,2.91809862]
[1773253795269,1.48226974,87.657,87.64,2.91809862]
[1773253795584,0.1,87.66,87.64,2.91809862]
[1773253796668,1.48226974,87.659,87.63,2.91809862]
[1773253797877,1.48226974,87.658,87.64,2.91809862]
[1773253798076,1.48226974,87.658,87.631,11.4114868]
[1773253798976,12.89024163,87.658,87.631,39.9402038]
[1773253799167,1.48226974,87.657,87.631,39.9402038]
[1773253799371,1.48226974,87.657,87.631,11.4114868]
[1773253799891,1.48226974,87.655,87.621,39.94475351]
[1773253800191,1.48226974,87.655,87.63,2.91809862]
[1773253800388,1.48226974,87.655,87.61,2.91809862]
[1773253800565,1.48226974,87.655,87.62,2.91809862]
[1773253801791,0.1,87.66,87.64,2.91809862]
[1773253801966,1.58226974,87.66,87.641,11.41018473]
[1773253802279,1.48226974,87.675,87.65,2.91809862]
[1773253802466,1.48226974,87.674,87.641,11.41018473]
[1773253803364,1.48226974,87.674,87.65,2.91809862]
[1773253804363,1.48226974,87.672,87.65,2.91809862]
[1773253804585,1.48226974,87.659,87.62,2.91809862]
[1773253804783,41.34682284,87.673,87.64,2.91809862]
[1773253804784,1.48226974,87.667,87.64,2.91809862]
[1773253805086,1.48226974,87.667,87.63,2.91809862]
[1773253805287,1.48226974,87.667,87.65,2.91809862]
[1773253805593,1.48226974,87.667,87.65,2.91519462]
[1773253805765,1.48226974,87.667,87.631,0.14216157]
[1773253806174,1.48226974,87.667,87.64,2.91519462]
[1773253806673,1.48226974,87.676,87.65,2.91519462]
[1773253806985,1.48226974,87.676,87.635,0.02490814]
[1773253807177,1.48226974,87.669,87.62,2.91519462]
[1773253807375,1.48226974,87.669,87.621,0.14216157]
[1773253807575,1.48226974,87.669,87.62,7.29195694]
[1773253807778,1.48226974,87.669,87.63,7.29195694]
[1773253808290,1.48226974,87.669,87.64,7.29195694]
[1773253808676,1.48226974,87.667,87.641,11.41018473]
[1773253809490,1.48226974,87.667,87.63,7.29195694]
[1773253811284,1.48226974,87.665,87.64,7.29195694]
[1773253811492,1.48226974,87.665,87.631,11.4114868]
[1773253813795,1.48226974,87.663,87.631,11.4114868]
[1773253814194,1.48226974,87.663,87.62,7.29195694]
[1773253814393,1.48226974,87.649,87.62,7.29195694]
[1773253814796,1.48226974,87.649,87.621,0.02875536]
[1773253815284,1.48226974,87.649,87.62,7.29195694]
[1773253815509,1.48226974,87.649,87.63,7.29195694]
[1773253815686,1.48226974,87.649,87.621,0.02875536]
[1773253815894,1.48226974,87.649,87.621,11.44154453]
[1773253816098,1.48226974,87.649,87.621,39.97351745]
[1773253816497,1.48226974,87.649,87.621,11.41278917]
[1773253816878,1.48226974,87.647,87.621,11.41278917]
[1773253818099,1.48226974,87.645,87.61,7.29195694]
[1773253819104,1.48226974,87.639,87.6,7.29195694]
[1773253819500,1.48226974,87.639,87.595,11.41617672]
[1773253819801,1.48226974,87.639,87.6,7.29195694]
[1773253820302,1.42606156,87.654,87.63,7.29195694]
[1773253820303,1.48226974,87.654,87.63,7.29195694]
[1773253820598,1.48226974,87.654,87.62,7.29195694]
[1773253821694,11.40836232,87.655,87.621,11.41278917]
[1773253821695,1.48226974,87.652,87.621,11.41278917]
[1773253823399,1.48226974,87.652,87.63,7.29195694]
[1773253823904,1.48226974,87.65,87.621,11.41278917]
[1773253824500,1.48226974,87.649,87.61,7.29195694]
[1773253824700,1.48226974,87.649,87.602,0.03309036]
[1773253824701,1.48226974,87.629,87.588,11.41708909]
[1773253824908,1.48226974,87.629,87.543,45.69166455]
[1773253824909,1.48226974,87.619,87.57,7.29195694]
[1773253825088,1.48226974,87.619,87.571,0.14216157]
[1773253825291,1.48226974,87.619,87.572,11.41917507]
[1773253825497,1.48226974,87.609,87.572,11.41917507]
[1773253825802,1.48226974,87.597,87.551,39.97669929]
[1773253826004,1.48226974,87.589,87.551,11.42191408]
[1773253828007,1.48226974,87.587,87.551,11.42191408]
[1773253828911,1.48226974,87.559,87.54,0.2]
[1773253829112,1.48226974,87.559,87.512,11.42700429]
[1773253829594,1.48226974,87.559,87.521,0.23507714]
[1773253829795,1.48226974,87.559,87.52,7.29195694]
[1773253830305,1.38226974,87.557,87.521,11.42582922]
[1773253830888,1.38226974,87.557,87.522,0.23584027]
[1773253831084,1.38226974,87.557,87.521,11.42582922]
[1773253831500,1.38226974,87.539,87.511,11.42713487]
[1773253832392,1.38226974,87.537,87.511,11.42713487]
[1773253833210,7.29195694,87.57,87.521,1.35524727]
[1773253833708,39.96163682,87.584,87.54,7.29195694]
[1773253834089,7.29195694,87.58,87.531,1.35524727]
[1773253834405,39.96391828,87.579,87.532,11.42439336]
[1773253834609,11.41708909,87.588,87.551,1.35524727]
[1773253835102,11.41708909,87.588,87.56,7.29195694]
[1773253835103,1.36809073,87.587,87.56,7.29195694]
[1773253835310,7.10201557,87.589,87.57,7.29195694]
[1773253835512,7.10201557,87.589,87.561,1.35524727]
[1773253835705,18.5190849,87.589,87.561,1.35524727]
[1773253836006,7.10201557,87.589,87.561,1.35524727]
[1773253836390,7.10201557,87.589,87.562,11.4204792]
[1773253836888,7.10201557,87.589,87.57,7.29195694]
[1773253838904,1.36809073,87.588,87.55,7.29195694]
[1773253839211,7.29195694,87.58,87.546,11.42256642]
[1773253839405,1.36809073,87.578,87.53,7.29195694]
[1773253839712,1.36809073,87.576,87.53,7.29195694]
[1773253840106,1.36809073,87.574,87.53,7.29195694]
[1773253840314,1.36809073,87.569,87.53,7.29195694]
[1773253840988,1.48559034,87.567,87.54,7.29195694]
[1773253841190,1.48559034,87.577,87.55,7.29195694]
[1773253841388,1.48559034,87.577,87.541,1.41414629]
[1773253841697,1.48559034,87.579,87.532,1.41414629]
[1773253842000,1.48559034,87.579,87.54,7.29195694]
[1773253842001,1.48559034,87.577,87.54,7.29195694]
[1773253842797,1.42728279,87.579,87.55,7.29195694]
[1773253843010,1.42728279,87.579,87.522,0.14216157]
[1773253843011,1.48559034,87.585,87.56,7.29195694]
[1773253843421,11.41760782,87.585,87.552,1.41414629]
[1773253843717,12.90319816,87.585,87.552,1.41414629]
[1773253844018,1.48559034,87.584,87.552,1.41414629]
[1773253844508,1.48559034,87.584,87.551,10.93686082]
[1773253845114,1.48559034,87.582,87.551,10.93686082]
[1773253847315,1.48559034,87.58,87.541,39.98108583]
[1773253847502,1.48559034,87.58,87.542,0.20672472]
[1773253848807,1.48559034,87.58,87.55,7.29195694]
[1773253849119,45.63615963,87.65,87.542,0.20672472]
[1773253849120,1.48559034,87.609,87.57,7.49874041]
[1773253849415,1.48559034,87.614,87.59,7.29195694]
[1773253849622,1.48559034,87.614,87.581,39.96300567]
[1773253849802,1.48559034,87.614,87.581,11.41800162]
[1773253852097,1.48608779,87.612,87.581,11.41800162]
[1773253852605,1.48608779,87.612,87.581,39.96300567]
[1773253852806,1.48608779,87.612,87.581,11.41800162]
[1773253853900,1.48608779,87.61,87.581,11.41800162]
[1773253856300,1.48608779,87.608,87.581,11.41800162]
[1773253858827,11.41461298,87.607,87.581,11.41800162]
[1773253859011,1.48608779,87.606,87.581,11.41800162]
[1773253859320,1.48608779,87.606,87.57,7.50167168]
[1773253859507,1.48608779,87.599,87.56,7.29195694]
[1773253859908,1.48608779,87.599,87.562,11.4204792]
[1773253860113,1.48608779,87.597,87.562,11.4204792]
[1773253860924,11.41604639,87.596,87.562,11.4204792]
[1773253861125,1.48608779,87.569,87.521,0.21092284]
[1773253861424,1.48608779,87.569,87.522,0.21092284]
[1773253861629,1.42705467,87.593,87.56,7.29195694]
[1773253861813,7.11788081,87.604,87.57,8.66921403]